bitfinex/quotes_ETHUSD_20240721
["timestamp","ask_amount","ask_price","bid_price","bid_amount"]
[1721603760950,7.32856708,3535.3,3535.2,0.15312118]
[1721603761280,3.94995708,3535.3,3535.2,0.15312118]
[1721603761481,2.82832,3535.7,3535.2,0.15312118]
[1721603761482,2.8284,3535.6,3535.2,0.15312118]
[1721603761665,2.82814,3535.9,3535.2,0.15312118]
[1721603762007,4.0962,3536.1,3535.4,2.4466]
[1721603762008,3.92418,3536.1,3535.4,2.4466]
[1721603762205,1.0962,3536.1,3535.4,2.4466]
[1721603762522,2.82813,3535.9,3535.4,2.4466]
[1721603763309,7.48,3536.2,3535.6,2.82837]
[1721603763589,3.0,3536.1,3535.5,2.82845]
[1721603764356,3.0,3536.1,3535.4,2.4466]
[1721603765230,2.82805,3536.0,3535.4,2.4466]
[1721603765436,4.330781,3536.1,3535.4,2.4466]
[1721603766212,2.82806,3536.0,3535.4,2.4466]
[1721603766407,3.0,3536.1,3535.4,2.4466]
[1721603766738,2.82807,3536.0,3535.4,2.4466]
[1721603766940,2.82814,3535.9,3535.4,2.4466]
[1721603767262,2.82861,3535.3,3535.2,0.15312118]
[1721603767405,2.23840646,3535.3,3535.2,0.15312118]
[1721603767606,2.78840646,3535.3,3535.2,0.15312118]
[1721603767807,0.55,3535.3,3535.2,0.15312118]
[1721603768152,6.20722,3535.3,3535.2,0.15312118]
[1721603768295,6.827942,3535.3,3535.2,0.15312118]
[1721603768853,6.20722,3535.3,3535.2,0.15312118]
[1721603769405,5.65722,3535.3,3535.2,0.15312118]
[1721603769923,6.20722,3535.3,3535.2,0.15312118]
[1721603771458,9.03583,3535.3,3535.2,0.15312118]
[1721603771623,12.03583,3535.3,3535.2,0.15312118]
[1721603771825,13.56661402,3535.3,3535.2,0.15312118]
[1721603772845,9.20722,3535.3,3535.2,0.15312118]
[1721603773054,8.65722,3535.3,3535.2,0.15312118]
[1721603774756,11.48583,3535.3,3535.2,0.15312118]
[1721603774960,12.03583,3535.3,3535.2,0.15312118]
[1721603775263,9.20722,3535.3,3535.2,0.15312118]
[1721603775556,10.127942,3535.3,3535.2,0.15312118]
[1721603776069,12.956552,3535.3,3535.2,0.15312118]
[1721603777271,10.127942,3535.3,3535.2,0.15312118]
[1721603777960,2.82861,3535.3,3535.2,0.15312118]
[1721603778163,2.82861,3535.3,3535.2,2.56302118]
[1721603780605,3.0,3535.8,3535.2,2.56302118]
[1721603780606,2.82836,3535.7,3535.2,2.56302118]
[1721603780960,2.82838,3535.6,3535.2,2.56302118]
[1721603781269,2.82846,3535.5,3535.2,2.56302118]
[1721603781576,10.3079,3536.2,3535.2,2.8193233]
[1721603781779,2.82801,3536.1,3535.2,2.8193233]
[1721603782175,2.82808,3536.0,3535.2,5.6480033]
[1721603782370,7.48,3536.2,3535.3,2.82859]
[1721603782593,7.48,3536.2,3535.6,2.3721]
[1721603782796,7.48,3536.2,3535.6,2.89781003]
[1721603783257,10.3079,3536.2,3535.6,2.89781003]
[1721603783688,10.3079,3536.2,3535.6,2.3721]
[1721603784304,2.82799,3536.1,3535.6,2.3721]
[1721603784615,7.48,3536.2,3535.6,2.3721]
[1721603784927,2.82809,3536.0,3535.6,2.3721]
[1721603785253,2.82816,3535.9,3535.6,2.3721]
[1721603785509,2.82801,3536.1,3535.6,2.3721]
[1721603785683,2.82801,3536.1,3535.6,2.892169]
[1721603786321,2.82782,3536.3,3535.6,2.892169]
[1721603786475,2.82777,3536.4,3535.6,2.3721]
[1721603786674,10.30766,3536.5,3535.6,2.3721]
[1721603786894,2.82766,3536.5,3535.6,2.3721]
[1721603787104,2.82791,3536.2,3535.6,2.3721]
[1721603787311,2.82791,3536.2,3535.7,0.520059]
[1721603787772,2.82766,3536.5,3535.7,0.520059]
[1721603788106,2.8279,3536.2,3535.7,0.520059]
[1721603788300,2.828,3536.1,3535.7,0.520059]
[1721603788613,2.82817,3535.9,3535.6,2.3721]
[1721603788778,10.48,3536.9,3535.6,2.3721]
[1721603788983,2.82829,3535.7,3535.6,2.3721]
[1721603789187,2.82814,3535.9,3535.6,2.3721]
[1721603790775,2.82797,3536.1,3535.6,2.3721]
[1721603791369,2.82811,3536.0,3535.6,2.3721]
[1721603792083,2.82815,3535.9,3535.6,2.3721]
[1721603792801,2.82822,3535.8,3535.6,2.3721]
[1721603793329,2.82797,3536.1,3535.6,2.3721]
[1721603794088,7.48,3536.3,3535.6,2.3721]
[1721603794408,2.82808,3536.0,3535.6,2.3721]
[1721603794789,2.82789,3536.2,3535.6,2.3721]
[1721603794987,7.48,3536.3,3535.6,2.892161]
[1721603795179,10.30783,3536.3,3535.6,2.892161]
[1721603795380,2.82806,3536.0,3535.6,2.892161]
[1721603795580,2.82806,3536.0,3535.6,2.3721]
[1721603796105,2.82789,3536.2,3535.6,2.3721]
[1721603797103,2.82798,3536.1,3535.6,2.3721]
[1721603797312,2.82827,3535.8,3535.6,2.3721]
[1721603797512,2.82829,3535.7,3535.6,2.3721]
[1721603798016,2.82861,3535.3,3535.2,0.15312118]
[1721603799324,2.82854,3535.4,3535.2,0.15312118]
[1721603799878,2.82834,3535.7,3535.2,0.15312118]
[1721603800085,2.82834,3535.7,3535.3,2.351]
[1721603800398,2.82813,3535.9,3535.3,2.351]
[1721603800597,2.82822,3535.8,3535.3,2.351]
[1721603800922,3.0,3536.2,3535.3,2.351]
[1721603800923,2.82838,3535.6,3535.3,2.351]
[1721603801082,2.82827,3535.8,3535.3,2.351]
[1721603801283,2.82814,3535.9,3535.3,2.351]
[1721603801511,2.82797,3536.1,3535.4,2.82847]
[1721603801727,7.48,3536.3,3535.5,2.3929]
[1721603801728,2.82791,3536.2,3535.5,2.3929]
[1721603801883,2.82797,3536.1,3535.5,2.3929]
[1721603802079,7.48,3536.3,3535.5,2.3929]
[1721603802080,2.82806,3536.0,3535.5,2.3929]
[1721603803199,7.48,3536.3,3535.5,2.3929]
[1721603803586,2.82803,3536.1,3535.5,2.3929]
[1721603804926,10.30783,3536.3,3535.5,5.22134]
[1721603805497,2.82783,3536.3,3535.5,5.17134]
[1721603807507,2.82766,3536.5,3535.5,5.17134]
[1721603807508,2.8279,3536.2,3535.5,5.17134]
[1721603808397,2.82773,3536.4,3535.5,5.17134]
[1721603808587,2.82773,3536.4,3535.6,2.82835]
[1721603808920,2.82782,3536.3,3535.6,2.82835]
[1721603810122,10.48,3536.7,3535.5,2.3429]
[1721603810362,11.78869126,3537.1,3536.1,2.487]
[1721603810499,2.82703,3537.3,3536.2,2.44485045]
[1721603810699,2.82703,3537.3,3536.2,2.637]
[1721603811217,10.30686,3537.5,3536.2,2.637]
[1721603811218,10.30686,3537.5,3536.3,2.3017]
[1721603811387,2.82669,3537.7,3536.8,2.82741]
[1721603811587,7.48,3537.9,3537.0,2.82724]
[1721603811839,7.48,3537.9,3537.1,2.3017]
[1721603812134,2.8263,3538.2,3537.1,2.3017]
[1721603812330,7.48,3538.3,3537.3,2.82695]
[1721603812331,2.82639,3538.1,3537.3,2.82695]
[1721603813488,2.82647,3538.0,3537.1,5.12886]
[1721603813721,2.82647,3538.0,3537.1,3.346019]
[1721603814225,2.82657,3537.9,3537.1,5.12887]
[1721603814436,2.82657,3537.9,3537.1,2.3017]
[1721603814623,2.82647,3538.0,3537.2,2.82709]
[1721603814926,2.82647,3538.0,3537.1,2.3017]
[1721603815231,2.82654,3537.9,3537.1,2.3017]
[1721603815390,2.82661,3537.8,3537.1,2.3017]
[1721603815784,2.82646,3538.0,3537.1,2.3017]
[1721603816024,2.82646,3538.0,3537.2,2.82709]
[1721603816337,3.87429,3538.2,3537.4,2.8269]
[1721603816338,3.8743,3538.2,3537.4,2.8269]
[1721603816539,10.30622,3538.3,3537.1,2.3017]
[1721603816831,3.0,3538.2,3537.2,0.47887]
[1721603817125,7.48,3538.3,3537.5,2.82684]
[1721603817331,7.48,3538.3,3537.6,2.82676]
[1721603817490,2.82598,3538.6,3537.6,2.82676]
[1721603817696,2.82598,3538.6,3537.8,2.3017]
[1721603817893,2.82574,3538.9,3537.8,2.3017]
[1721603818126,1.0749018,3538.8,3538.1,2.82637]
[1721603818291,2.82574,3538.9,3538.1,2.82637]
[1721603818826,2.82605,3538.5,3537.8,2.3017]
[1721603819203,2.82628,3538.3,3537.8,2.3017]
[1721603819386,2.82637,3538.1,3537.8,2.3017]
[1721603820394,2.82609,3538.5,3537.8,2.3017]
[1721603820595,3.95658254,3538.5,3537.8,2.3017]
[1721603821315,3.95658254,3538.5,3537.8,5.1283]
[1721603821501,7.48,3538.6,3537.8,5.12824]
[1721603821741,7.48,3538.6,3538.1,2.82636]
[1721603821929,7.48,3538.6,3537.9,2.82653]
[1721603822125,7.48,3538.6,3537.8,2.3017]
[1721603822126,7.48,3538.6,3538.2,2.82622]
[1721603822323,7.48,3538.6,3537.8,2.3017]
[1721603822324,7.48,3538.6,3538.3,2.82613]
[1721603822529,7.48,3538.6,3538.4,2.82611]
[1721603822831,7.48,3538.6,3538.1,2.82637]
[1721603823246,7.48,3538.6,3538.2,2.373]
[1721603823447,10.30559,3539.1,3538.2,2.373]
[1721603823635,1.3131,3539.0,3538.2,2.373]
[1721603823834,2.82559,3539.1,3538.2,2.373]
[1721603824257,2.82541,3539.3,3538.4,2.82613]
[1721603824469,5.82551,3539.2,3538.4,2.82613]
[1721603824864,2.82551,3539.2,3538.4,2.82613]
[1721603825280,2.82559,3539.1,3538.2,5.19925]
[1721603825426,3.390771,3539.0,3538.3,2.82619]
[1721603825634,0.565101,3539.0,3538.3,2.82619]
[1721603825835,0.565101,3539.0,3538.4,2.82613]
[1721603826370,0.565101,3539.0,3538.2,2.373]
[1721603826530,7.48,3539.5,3538.2,2.373]
[1721603826531,2.82594,3538.7,3538.2,2.373]
[1721603826953,2.82574,3538.9,3538.2,2.373]
[1721603828190,2.82653,3538.0,3537.3,2.3608]
[1721603828491,0.55,3538.8,3537.3,2.3608]
[1721603828492,2.82678,3537.6,3537.3,2.3608]
[1721603829281,10.30617,3538.4,3537.3,2.3608]
[1721603829282,2.82661,3537.8,3537.3,2.3608]
[1721603829485,2.82646,3538.0,3537.3,5.18779]
[1721603829682,3.0,3538.3,3537.3,5.18779]
[1721603830355,5.82622,3538.3,3537.5,2.82677]
[1721603830668,4.613234,3538.3,3537.7,2.82668]
[1721603830868,4.613234,3538.3,3537.5,2.82677]
[1721603831176,7.439464,3538.3,3537.5,2.82677]
[1721603831492,4.613234,3538.3,3537.7,2.82668]
[1721603832070,2.82637,3538.2,3537.3,2.3608]
[1721603832280,2.82638,3538.1,3537.3,2.3608]
[1721603832570,2.82638,3538.1,3537.4,2.82691]
[1721603833570,2.82638,3538.1,3537.3,2.3608]
[1721603833772,4.0356234,3538.2,3537.3,2.3608]
[1721603834097,2.82655,3537.9,3537.3,2.3608]
[1721603834283,2.82663,3537.8,3537.3,2.3608]
[1721603834637,2.82649,3538.0,3537.3,2.3608]
[1721603835174,1.45155434,3538.1,3537.3,5.18779]
[1721603835391,5.82621,3538.3,3537.3,5.18779]
[1721603835877,5.82621,3538.3,3537.5,2.82683]
[1721603836738,5.82621,3538.3,3537.6,2.82674]
[1721603836739,3.0,3538.3,3537.6,2.82674]
[1721603837164,3.0,3538.3,3537.5,2.82685]
[1721603837362,7.48,3538.7,3537.9,2.82647]
[1721603837566,7.48,3538.7,3538.0,2.4943]
[1721603837981,7.48,3538.7,3538.1,2.82635]
[1721603838196,2.82584,3538.8,3538.1,2.82635]
[1721603838486,2.82584,3538.8,3538.0,2.4943]
[1721603838487,2.82566,3539.0,3538.2,2.82627]
[1721603838681,3.45119003,3538.9,3538.2,2.82627]
[1721603839056,10.30558,3539.1,3538.3,2.82621]
[1721603839885,7.48,3539.1,3538.4,2.82612]
[1721603840491,10.30557,3539.1,3538.2,2.82623]
[1721603841211,2.82557,3539.1,3538.2,2.82623]
[1721603841513,2.82557,3539.1,3538.3,2.82619]
[1721603841820,2.82551,3539.2,3538.4,2.82606]
[1721603842593,2.82551,3539.2,3538.5,2.82604]
[1721603842794,2.82551,3539.2,3538.3,2.82615]
[1721603843018,2.82558,3539.1,3538.3,2.82615]
[1721603843219,2.82558,3539.1,3538.4,2.82612]
[1721603844607,5.82544,3539.3,3538.5,2.82603]
[1721603844943,2.82558,3539.1,3538.3,2.8262]
[1721603845120,7.17157229,3539.3,3538.4,2.82607]
[1721603845322,4.17157229,3539.3,3538.4,2.82607]
[1721603845638,10.30526,3539.5,3538.7,5.23868]
[1721603845799,18.67827485,3539.7,3538.7,5.23868]
[1721603845800,2.82535,3539.4,3538.7,2.4128]
[1721603846331,2.82526,3539.5,3538.7,5.23868]
[1721603846741,2.82526,3539.5,3538.7,2.4128]
[1721603847046,2.82542,3539.3,3538.7,2.4128]
[1721603847201,2.82526,3539.5,3538.7,2.4128]
[1721603847396,3.73461349,3539.5,3538.7,2.4128]
[1721603847597,2.82536,3539.4,3538.7,2.4128]
[1721603851611,2.82543,3539.3,3538.7,2.4128]
[1721603851831,2.8255,3539.2,3538.7,2.4128]
[1721603852058,2.82574,3538.9,3538.3,2.4128]
[1721603852550,2.82558,3539.1,3538.3,2.4128]
[1721603852861,2.82558,3539.1,3538.3,5.23901]
[1721603853356,2.82542,3539.3,3538.4,2.82612]
[1721603853534,2.82542,3539.3,3538.5,2.82599]
[1721603854361,2.82553,3539.2,3538.3,2.4128]
[1721603854543,2.82571,3539.0,3538.3,2.4128]
[1721603855417,2.82571,3539.0,3538.3,5.239]
[1721603855653,2.82574,3538.9,3538.3,2.4128]
[1721603856422,2.82562,3539.1,3538.3,2.4128]
[1721603857273,2.82566,3539.0,3538.3,2.4128]
[1721603857429,2.82591,3538.7,3538.3,2.4128]
[1721603857826,2.8258,3538.9,3538.3,2.4128]
[1721603858149,2.82588,3538.8,3538.3,2.4128]
[1721603858962,2.82592,3538.7,3538.3,2.4128]
[1721603859172,2.82592,3538.7,3537.9,2.82649]
[1721603859173,0.565165,3538.7,3537.9,0.59205546]
[1721603859391,2.82625,3538.3,3537.8,2.4228]
[1721603859639,2.82611,3538.5,3537.8,2.4228]
[1721603859889,0.565201,3538.4,3537.8,2.4228]
[1721603860048,2.82622,3538.3,3537.8,2.4228]
[1721603860254,2.82635,3538.2,3537.5,2.82684]
[1721603860507,0.565201,3538.4,3537.4,2.4784]
[1721603860508,2.8262,3538.4,3537.4,2.4784]
[1721603860656,2.82622,3538.3,3537.6,2.82675]
[1721603860857,9.7449,3538.7,3537.4,5.30533]
[1721603861178,2.82636,3538.2,3537.5,2.45719723]
[1721603861475,9.7449,3538.7,3537.6,0.98287889]
[1721603861476,3.391621,3538.1,3537.6,0.98287889]
[1721603861677,2.82645,3538.0,3537.4,2.4784]
[1721603862178,3.391641,3538.1,3537.4,2.4784]
[1721603862381,0.565251,3538.1,3537.4,2.4784]
[1721603862541,2.82633,3538.2,3537.5,5.28404746]
[1721603862747,2.82633,3538.2,3537.4,3.07045546]
[1721603862748,0.55,3538.6,3537.6,0.98291098]
[1721603863039,10.3059,3538.7,3537.4,3.07045546]
[1721603863040,7.48,3538.7,3537.5,2.82684]
[1721603863256,2.8263,3538.2,3537.5,2.82684]
[1721603863750,2.82606,3538.5,3537.5,2.82684]
[1721603863961,1.030606,3538.5,3537.5,2.82684]
[1721603864285,7.48,3538.7,3537.5,2.82684]
[1721603864490,2.82607,3538.5,3537.8,2.82661]
[1721603865520,7.48,3538.7,3537.4,2.4784]
[1721603865670,2.82622,3538.3,3537.4,2.4784]
[1721603865985,2.82646,3538.0,3537.4,2.4784]
[1721603866883,2.82632,3538.2,3537.4,2.4784]
[1721603867093,2.82598,3538.6,3537.4,3.15637679]
[1721603867250,2.82597,3538.6,3537.9,2.82647]
[1721603867553,2.82597,3538.6,3538.0,2.3535]
[1721603867757,7.48,3538.7,3538.0,2.3535]
[1721603869786,2.82599,3538.6,3538.0,2.3535]
[1721603870587,2.82607,3538.5,3538.0,2.3535]
[1721603870793,2.82631,3538.2,3538.0,2.3535]
[1721603870977,2.82631,3538.2,3537.5,2.3535]
[1721603871368,2.82631,3538.2,3537.5,5.18034]
[1721603871867,2.82613,3538.4,3537.7,2.82669]
[1721603872212,10.30595,3538.7,3537.7,2.82669]
[1721603872497,3.856575,3538.6,3537.6,2.82675]
[1721603872665,2.82628,3538.3,3537.5,2.3535]
[1721603872869,0.030595,3538.6,3537.5,2.3535]
[1721603873098,0.030595,3538.6,3537.2,1.47442043]
[1721603873099,2.82661,3537.8,3537.2,1.47442043]
[1721603873393,2.8267,3537.7,3537.1,2.2852]
[1721603873597,2.82645,3538.0,3537.1,2.2852]
[1721603873902,2.8267,3537.7,3537.1,2.2852]
[1721603874109,2.82699,3537.4,3536.6,5.11275]
[1721603875451,2.82699,3537.4,3536.7,2.82748]
[1721603876281,2.82677,3537.6,3536.8,2.82737]
[1721603876481,2.82672,3537.7,3536.7,2.82748]
[1721603876818,10.48,3537.9,3536.2,2.7357]
[1721603876819,10.48,3537.9,3536.9,2.2852]
[1721603876982,10.48,3537.9,3536.9,5.11252]
[1721603877308,2.8267,3537.7,3536.9,5.11252]
[1721603878872,7.48,3537.9,3537.2,2.82708]
[1721603880017,3.0,3538.3,3537.3,2.82695]
[1721603880172,2.82639,3538.1,3537.3,2.82695]
[1721603880995,4.51080388,3538.3,3537.1,5.20436]
[1721603881309,2.82666,3537.8,3537.1,2.3772]
[1721603881506,2.4715,3538.3,3537.1,2.3772]
[1721603881716,2.82683,3537.6,3537.1,2.3772]
[1721603881916,2.82697,3537.4,3536.7,2.2525]
[1721603882275,2.82683,3537.6,3536.7,2.2525]
[1721603882276,2.82683,3537.6,3536.7,5.588002]
[1721603882620,2.82662,3537.8,3536.7,5.588002]
[1721603882621,2.82686,3537.5,3536.7,5.588002]
[1721603883581,2.82699,3537.4,3536.7,2.760522]
[1721603883922,2.82704,3537.3,3536.7,2.2525]
[1721603884498,2.82686,3537.5,3536.7,5.07999]
[1721603884980,2.82695,3537.4,3536.7,5.07999]
[1721603886816,2.82701,3537.3,3536.7,2.2525]
[1721603887976,2.82689,3537.5,3536.7,5.07999]
[1721603888217,2.82689,3537.5,3536.8,2.82741]
[1721603888776,2.82709,3537.2,3536.7,2.2525]
[1721603888981,2.82693,3537.4,3536.7,2.2525]
[1721603889205,2.82702,3537.3,3536.7,2.2525]
[1721603890307,2.82711,3537.2,3536.7,2.2525]
[1721603891324,2.82711,3537.2,3536.0,2.82798]
[1721603891325,2.82747,3536.8,3536.0,2.82798]
[1721603891823,2.82751,3536.7,3536.0,2.82798]
[1721603891983,2.82753,3536.7,3535.7,2.82829]
[1721603892510,2.82753,3536.7,3535.8,2.3781]
[1721603892714,2.82736,3536.9,3535.8,5.726948]
[1721603892882,2.82728,3537.0,3536.1,2.8279]
[1721603893084,3.0,3536.9,3536.1,2.8279]
[1721603893325,5.82734,3536.9,3536.1,2.8279]
[1721603894522,2.8233,3542.0,3536.1,2.8279]
[1721603894687,2.82747,3536.8,3536.2,19.73]
[1721603894881,2.82684,3537.6,3536.7,2.82742]
[1721603895117,2.82684,3537.6,3536.9,2.487]
[1721603895385,2.82621,3538.4,3537.3,2.487]
[1721603895591,2.82628,3538.3,3537.3,5.314]
[1721603896484,2.82632,3538.2,3537.3,5.314]
[1721603896819,2.82638,3538.1,3537.4,1.052095]
[1721603897025,2.82639,3538.1,3537.3,2.487]
[1721603897397,3.0,3538.4,3537.1,2.3798]
[1721603897598,2.82675,3537.7,3537.1,2.3798]
[1721603900808,2.82675,3537.7,3537.2,19.73]
[1721603902138,4.39509,3538.4,3537.2,19.73]
[1721603902139,2.8268,3537.6,3537.2,19.73]
[1721603902289,2.8268,3537.6,3537.3,19.73]
[1721603902631,3.265759,3538.3,3537.3,19.73]
[1721603902632,2.82671,3537.7,3537.3,19.73]
[1721603902998,2.82687,3537.5,3537.3,19.73]
[1721603903622,2.82605,3538.5,3537.4,2.82693]
[1721603903814,0.35,3538.4,3537.5,24.256693]
[1721603904016,1.5689,3539.3,3537.7,2.82662]
[1721603904230,2.82589,3538.8,3537.8,10.12661]
[1721603904446,2.82589,3538.8,3537.9,4.94420398]
[1721603904755,2.82566,3539.0,3537.9,4.94420398]
[1721603905240,2.82575,3538.9,3537.9,4.94420398]
[1721603905447,2.82575,3538.9,3538.0,2.82643]
[1721603905652,2.82558,3539.1,3538.1,2.82636]
[1721603905832,2.82525,3539.6,3538.1,3.346998]
[1721603905833,2.82568,3539.0,3538.1,3.346998]
[1721603906136,2.82525,3539.6,3538.1,0.520638]
[1721603906137,5.82573,3538.9,3538.1,0.520638]
[1721603907004,3.0,3538.9,3538.1,0.520638]
[1721603907209,2.82573,3539.0,3538.1,0.520638]
[1721603907451,5.82574,3538.9,3538.1,0.520638]
[1721603907650,2.82574,3538.9,3538.2,0.8291262]
[1721603908344,3.0,3539.1,3538.2,0.8291262]
[1721603908549,2.82559,3539.1,3538.2,3.6554062]
[1721603908717,3.0,3539.0,3538.2,3.6554062]
[1721603909346,3.0,3539.0,3538.3,5.15258]
[1721603909570,5.82551,3539.2,3538.4,0.65023442]
[1721603909913,2.8256,3539.1,3538.4,0.65023442]
[1721603910114,3.0,3539.0,3538.4,0.65023442]
[1721603910550,3.0,3539.0,3538.4,20.38023442]
[1721603910758,3.0,3539.2,3538.4,23.20635442]
[1721603911054,3.0,3539.5,3538.5,5.74335562]
[1721603911356,5.82526,3539.5,3538.6,2.82597]
[1721603911562,5.82526,3539.5,3538.7,2.3264]
[1721603911563,2.82526,3539.5,3538.7,2.3264]
[1721603913258,2.8254,3539.4,3538.7,2.3264]
[1721603914239,2.8254,3539.4,3538.7,3.62790874]
[1721603915045,2.8255,3539.2,3538.7,2.3264]
[1721603915441,2.82536,3539.4,3538.7,2.3264]
[1721603915716,2.82536,3539.4,3538.7,22.0564]
[1721603917023,2.82542,3539.3,3538.7,22.0564]
[1721603917226,2.82547,3539.3,3538.7,22.0564]
[1721603918168,2.82526,3539.5,3538.7,24.544652]
[1721603919167,3.0,3539.8,3538.7,24.544652]
[1721603919377,2.82475,3540.2,3538.7,24.544652]
[1721603919378,2.82531,3539.5,3538.7,24.544652]
[1721603919585,2.82509,3539.7,3538.7,24.544652]
[1721603919786,2.82519,3539.6,3538.8,2.7370562]
[1721603919988,2.82519,3539.6,3538.8,5.5628662]
[1721603920283,2.82527,3539.5,3538.8,2.7370562]
[1721603920456,2.82538,3539.4,3538.8,2.7370562]
[1721603921091,2.82525,3539.5,3538.8,2.7370562]
[1721603921449,2.82525,3539.5,3538.8,22.4670562]
[1721603921753,3.0,3540.1,3538.8,22.4670562]
[1721603921977,2.82549,3539.3,3538.8,19.73]
[1721603922850,2.8256,3539.1,3538.8,19.73]
[1721603923089,2.82549,3539.3,3538.8,19.73]
[1721603923259,6.96688989,3540.0,3538.8,19.73]
[1721603923591,2.82573,3538.9,3538.8,19.73]
[1721603923884,5.65146,3538.9,3538.8,19.73]
[1721603924192,2.82573,3538.9,3538.8,19.73]
[1721603924544,5.65146,3538.9,3538.8,19.73]
[1721603926566,2.82573,3538.9,3538.8,19.73]
[1721603927490,2.82567,3539.0,3538.4,19.73]
[1721603929579,5.82524,3539.6,3538.4,19.73]
[1721603929580,2.8258,3538.9,3538.4,19.73]
[1721603930267,2.82582,3538.8,3538.4,19.73]
[1721603932490,2.8259,3538.7,3538.4,19.73]
[1721603932653,2.8259,3538.7,3538.3,9.6389]
[1721603932654,2.8259,3538.7,3538.5,19.73]
[1721603934976,2.82574,3538.9,3538.5,19.73]
[1721603935378,2.82582,3538.8,3538.5,19.73]
[1721603936266,2.8259,3538.7,3538.5,19.73]
[1721603936469,2.8259,3538.7,3538.4,19.73]
[1721603938266,2.82573,3538.9,3538.4,19.73]
[1721603938615,0.582524,3539.5,3538.4,19.73]
[1721603938616,2.82543,3539.3,3538.4,19.73]
[1721603938818,2.82565,3539.0,3538.4,19.73]
[1721603939165,2.82565,3539.0,3538.5,2.3419]
[1721603940617,2.82581,3538.9,3538.5,2.3419]
[1721603940773,2.82584,3538.8,3538.5,2.3419]
[1721603940976,2.82566,3539.0,3538.5,2.3419]
[1721603942382,2.82566,3539.0,3538.5,22.0719]
[1721603942575,2.82597,3538.6,3538.5,19.73]
[1721603942769,5.65194,3538.6,3538.5,19.73]
[1721603945316,8.47791,3538.6,3538.5,19.73]
[1721603945538,6.20194,3538.6,3538.5,19.73]
[1721603946920,2.82597,3538.6,3538.5,19.73]
[1721603947514,3.0,3539.2,3538.5,19.73]
[1721603947677,3.0,3539.4,3538.5,19.73]
[1721603947883,0.49378447,3539.3,3538.5,19.73]
[1721603948096,2.82591,3538.7,3538.5,19.73]
[1721603948598,2.82597,3538.6,3538.5,19.73]
[1721603949422,5.65194,3538.6,3538.5,19.73]
[1721603949601,2.82597,3538.6,3538.5,19.73]
[1721603956384,5.65194,3538.6,3538.5,19.73]
[1721603957084,2.82597,3538.6,3538.5,19.73]
[1721603958823,5.65194,3538.6,3538.5,19.73]
[1721603959023,2.82597,3538.6,3538.5,19.73]
[1721603963023,5.6821148,3539.4,3538.5,19.73]
[1721603963024,2.8258,3538.9,3538.5,19.73]
[1721603963238,6.9386048,3539.4,3538.5,19.73]
[1721603963239,0.44321816,3539.4,3538.6,2.4818]
[1721603963435,0.44321816,3539.4,3538.6,2.53831527]
[1721603963736,2.82523,3539.6,3538.8,2.4818]
[1721603963912,2.82523,3539.6,3539.0,2.4818]
[1721603964107,2.82502,3539.8,3539.0,2.4818]
[1721603964351,0.44314416,3540.3,3539.0,2.82564]
[1721603964562,2.82516,3539.7,3539.0,2.4818]
[1721603964718,2.82518,3539.6,3539.0,2.4818]
[1721603964927,2.82519,3539.6,3539.0,2.4818]
[1721603965112,2.8247,3540.2,3539.0,2.4818]
[1721603965314,2.82527,3539.5,3539.0,2.4818]
[1721603965760,2.82548,3539.3,3539.0,2.4818]
[1721603965976,2.82557,3539.1,3539.0,2.4818]
[1721603968346,2.82575,3538.9,3538.5,2.4665]
[1721603968547,2.82575,3538.9,3538.5,5.38386562]
[1721603970291,7.39369,3540.1,3538.5,5.38386562]
[1721603970292,4.5689,3540.1,3538.5,2.4665]
[1721603970444,5.6521,3538.5,3538.4,19.73]
[1721603970648,9.02815,3538.5,3538.4,19.73]
[1721603970894,13.087855,3538.5,3538.4,19.73]
[1721603974499,10.261805,3538.5,3538.4,19.73]
[1721603974700,9.2021,3538.5,3538.4,19.73]
[1721603975279,9.49443631,3538.5,3538.4,19.73]
[1721603977714,9.31643631,3538.5,3538.4,19.73]
[1721603979079,6.49038631,3538.5,3538.4,19.73]
[1721603979275,5.64805,3538.5,3538.4,22.0094]
[1721603979513,2.82591,3538.7,3538.4,24.21034]
[1721603979679,2.82581,3538.9,3538.4,4.48034]
[1721603979876,2.8259,3538.7,3538.4,4.48034]
[1721603980888,2.82605,3538.5,3538.4,4.48034]
[1721603981101,2.82605,3538.5,3538.4,2.2794]
[1721603982733,5.6521,3538.5,3538.4,2.2794]
[1721603983038,2.82629,3538.2,3538.1,19.73]
[1721603983336,5.65258,3538.2,3538.1,19.73]
[1721603983834,2.82669,3537.7,3537.6,22.1592]
[1721603983991,2.82669,3537.7,3537.6,2.4292]
[1721603985024,5.65338,3537.7,3537.6,2.4292]
[1721603988286,2.82693,3537.4,3537.3,22.0789]
[1721603991949,5.65386,3537.4,3537.3,22.0789]
[1721603992277,5.65386,3537.4,3536.8,2.279]
[1721603992278,2.82733,3536.9,3536.8,2.279]
[1721603992868,2.82757,3536.6,3536.5,19.73]
[1721603993933,0.55,3537.4,3536.5,22.009]
[1721603994237,2.82632,3538.2,3536.5,22.009]
[1721603994459,2.82711,3537.2,3536.7,7.3]
[1721603994635,2.82711,3537.2,3536.5,2.279]
[1721603994842,3.0,3537.7,3536.6,2.82757]